{"text_format":"1","workbook":"xlsx","n_sheets":2,"sheets":["формулы","расчет"],"not_rendered":{"charts":0,"images":0,"macros":1,"external_links":0,"defined_names":0,"comments":0,"pivot_tables":0},"unopened":[],"bounds":{"document_bytes":16777216,"sheet_cells":100000,"rows_first":2000,"rows_last":500,"rows_between":2000,"halvings":0,"cell_chars":16384,"cell_head_chars":4096},"cells_cut":0,"cells_raw":0,"read":"whole","date_system":"1900"}

{"sheet":"формулы","index":0,"n_rows":90,"n_cols":14,"rows_kept":90,"cut":false,"hidden":true,"merged":[[89,2,89,7],[79,5,79,7],[80,5,80,7],[81,5,81,7],[82,5,82,7],[83,5,83,7],[84,2,84,7],[85,5,85,7],[77,5,77,7],[78,5,78,7],[86,5,86,7],[87,2,87,7],[88,5,88,7],[70,5,70,7],[73,5,73,7],[74,5,74,7],[75,5,75,7],[76,5,76,7],[65,5,65,7],[66,5,66,7],[67,5,67,7],[68,5,68,7],[69,5,69,7],[57,2,57,7],[58,2,58,7],[61,5,61,7],[62,5,62,7],[63,5,63,7],[50,2,50,7],[51,2,51,7],[54,2,54,7],[55,2,55,7],[56,2,56,7],[45,2,45,7],[46,2,46,7],[47,2,47,7],[48,2,48,7],[49,2,49,7],[40,2,40,7],[41,2,41,7],[42,2,42,7],[43,2,43,7],[44,2,44,7],[34,2,34,7],[35,5,35,7],[36,5,36,7],[37,5,37,7],[38,5,38,7],[0,3,0,7],[0,9,0,13],[11,5,11,7],[26,2,26,7],[29,2,29,7]]}
[null,null,"Комментарий","Варианты выбора, которые видит Клиент",null,null,null,null,null,"цена за услугу"]
[null,"БУХГАЛТЕРСКИЙ УЧЕТ ХОЗЯЙСТВЕННЫХ ОПЕРАЦИЙ:"]
["1","Количество исходящих платежных поручений в месяц (в белорусских рублях)","выбирает из списка:","нет операций","1-10","11 - 50","51 - 150","свыше 150",null,0,40.951516722841589,143.33030852994554,450.46668395125744,1228.5455016852475]
["2","Количество исходящих платежных поручений в месяц (в иностранной валюте)","выбирает из списка:","нет операций","1-10","11 - 50","51 - 150","свыше 150",null,0,102.37879180710395,358.32577132486387,1126.1667098781436,3071.3637542131187]
["3","Количество входящих платежных поручений в месяц (в белорусских рублях)","выбирает из списка:","нет операций","1-10","11 - 50","51 - 150","свыше 150",null,0,27.301011148561052,95.553539019963694,300.31112263417157,819.03033445683161]
["4","Количество входящих платежных поручений в месяц (в иностранной валюте)","выбирает из списка:","нет операций","1-10","11 - 50","51 - 150","свыше 150",null,0,54.602022297122105,191.10707803992739,600.62224526834314,1638.0606689136632]
["5","Количество приходного кассовых ордеров в месяц","выбирает из списка:","нет операций","1-10","11 - 50","51 - 150","свыше 150",null,0,40.951516722841589,143.33030852994554,450.46668395125744,1228.5455016852475]
["6","Количество расходных кассовых ордеров в месяц","выбирает из списка:","нет операций","1-10","11 - 50","51 - 150","свыше 150",null,0,40.951516722841589,143.33030852994554,450.46668395125744,1228.5455016852475]
["7","Количество авансовых отчетов (хозяйственные нужды) в месяц","выбирает из списка:","нет операций","1-10","11 - 50","51 - 150","свыше 150",null,0,54.602022297122105,191.10707803992739,600.62224526834314,1638.0606689136632]
["8","Количество авансовых отчетов (командировочные расходы по Республике Беларусь) в месяц","выбирает из списка:","нет операций","1-10","11 - 50","51 - 150","свыше 150",null,0,102.37879180710395,358.32577132486387,1126.1667098781436,3071.3637542131187]
["9","Количество авансовых отчетов (командировочные расходы за рубежом) в месяц","выбирает из списка:","нет операций","1-10","11 - 50","51 - 150","свыше 150",null,0,143.33030852994557,501.65607985480943,1576.633393829401,4299.9092558983666]
["14","Наличие счета \"Корпоративные банковские карты\"","выбирает из списка:","да","нет","Если ДА - считать 1 в месяц",null,null,null,12.285455016852477]
["15","Количество накладных на приход ТМЦ в месяц (в белорусских рублях (до 10 позиций в накладной))","выбирает из списка:","нет операций","1-10","11 - 50","51 - 150","свыше 150",null,0,54.602022297122105,191.10707803992739,600.62224526834314,1638.0606689136632]
["16","Количество накладных на приход ТМЦ в месяц ( в белорусских рублях (свыше 10 позиций в накладной))","выбирает из списка:","нет операций","1-10","11 - 50","51 - 150","свыше 150",null,0,109.20404459424421,382.21415607985477,1201.2444905366863,3276.1213378273264]
["17","Количество накладных на приход ТМЦ в месяц ( в иностранной валюте)","выбирает из списка:","нет операций","1-10","11 - 50","51 - 150","свыше 150",null,0,81.903033445683178,286.66061705989108,900.93336790251487,2457.0910033704949]
["18","Количество входящих актов выполненных работ в месяц (в белорусских рублях)","выбирает из списка:","нет операций","1-10","11 - 50","51 - 150","свыше 150",null,0,54.602022297122105,191.10707803992739,600.62224526834314,1638.0606689136632]
["19","Количество входящих актов выполненных работ в месяц (в иностранной валюте)","выбирает из списка:","нет операций","1-10","11 - 50","51 - 150","свыше 150",null,0,81.903033445683178,286.66061705989108,900.93336790251487,2457.0910033704949]
["20","Количество актов на списание материалов по итогам месяца в месяц (при номенкларуте до 10 позиций в акте)","выбирает из списка:","нет операций","1-10","11 - 50","51 - 150","свыше 150",null,0,40.951516722841596,122.85455016852478,417.70547057298427,1236.7358050298162]
["21","Количество актов на списание материалов по итогам месяца в месяц (при номенклатуре свыше 10 позиций в акте)","выбирает из списка:","нет операций","1-10","11 - 50","51 - 150","свыше 150",null,0,81.903033445683192,245.70910033704956,835.41094114596854,2473.4716100596324]
["22","Количество приобретаемого в месяц инвентаря, спецодежды, спецоснастки","выбирает из списка:","нет операций","1-10","11 - 50","51 - 150","свыше 150",null,0,24.570910033704955,73.712730101114857,147.42546020222971,368.56365050557434]
["23","Количество путевых листов в месяц","выбирает из списка:","нет операций","1-10","11 - 50","51 - 150","свыше 150",null,0,81.903033445683192,245.70910033704956,835.41094114596854,2473.4716100596324]
["27","Количество накладных на реализацию ТМЦ в месяц (в белорусских рублях (до 10 позиций в накладной))","выбирает из списка:","нет операций","1-10","11 - 50","51 - 150","свыше 150",null,0,54.602022297122105,191.10707803992739,600.62224526834314,1638.0606689136632]
["28","Количество накладных на реализацию ТМЦ в месяц (в белорусских рублях (свыше 10 позиций в накладной))","выбирает из списка:","нет операций","1-10","11 - 50","51 - 150","свыше 150",null,0,109.20404459424421,382.21415607985477,1201.2444905366863,3276.1213378273264]
["29","Количество накладных на реализацию ТМЦ в месяц (в иностранной валюте)","выбирает из списка:","нет операций","1-10","11 - 50","51 - 150","свыше 150",null,0,81.903033445683178,286.66061705989108,900.93336790251487,2457.0910033704949]
["30","Количество актов выполненных работ, оказанных услуг (реализация) в месяц (в белорусских рублях)","выбирает из списка:","нет операций","1-10","11 - 50","51 - 150","свыше 150",null,0,54.602022297122105,191.10707803992739,600.62224526834314,1638.0606689136632]
["31","Количество актов выполненных работ, оказанных услуг (реализация) в месяц (в иностранной валюте)","выбирает из списка:","нет операций","1-10","11 - 50","51 - 150","свыше 150",null,0,81.903033445683178,286.66061705989108,900.93336790251487,2457.0910033704949]
["34","Сверка расчетов с поставщиками и подрядчиками, покупателями и заказчиками, в том числе формирование актов (из расчета 2 сверки в месяц)","считать в любом случае",null,null,null,null,null,null,8.1903033445683189]
["35","Количество исходящих электронных счет-фактур по НДС","выбирает из списка:","нет операций","1-10","11 - 50","51 - 150","свыше 150",null,0,61.427275084262391,214.99546279491835,675.70002592688627,1842.8182525278717]
["36","Количество входящих электронных счетов-фактур по НДС","выбирает из списка:","нет операций","1-10","11 - 50","51 - 150","свыше 150",null,0,40.951516722841596,143.33030852994557,450.46668395125755,1228.5455016852479]
["37","Формирование вычетов НДС (записей книги покупок)","считать если, на вопрос 27 количество больше 0",null,null,null,null,null,null,8.1903033445683189]
["38","Количество оформляемых в месяц доверенностей","выбирает из списка:","нет операций","1-10","11 - 50","51 - 150","свыше 150",null,0,40.951516722841589,143.33030852994554,450.46668395125744,1228.5455016852475]
["39","Количество выписываемых счетов в месяц на оплату для покупателей и заказчиков","выбирает из списка:","нет операций","1-10","11 - 50","51 - 150","свыше 150",null,0,40.951516722841589,143.33030852994554,450.46668395125744,1228.5455016852475]
["40","Количество приобретаемых основных средств в месяц","выбирает из списка:","нет операций","1-10","11 - 50","51 - 150","свыше 150",null,0,245.70910033704956,859.98185117967341,2702.8001037075451,7371.2730101114867]
["41","Количество приобретаемых нематериальных активов в месяц","выбирает из списка:","нет операций","1-10","11 - 50","51 - 150","свыше 150",null,0,163.80606689136638,573.32123411978228,1801.8667358050302,4914.1820067409917]
["42","Документальное оформление начисления амортизации основных средств и нематериальных активов (по итогам месяца), печать анализов счетов и оборотных ведомостей","считать если, на вопрос 30 или 31 количество больше 0",null,null,null,null,null,null,12.285455016852477]
["43","Документальное оформление и учет операций по выбытию основных средств","выбирает из списка:","да","нет",null,null,null,null,24.570910033704955]
["50","Наличие управленческих расходов в организации","выбирает из списка:","да","нет","Если ДА - считать 1 в месяц",null,null,null,32.761213378273268]
["51","Наличие коммерческих расходов в организации","выбирает из списка:","да","нет","Если ДА - считать 1 в месяц",null,null,null,32.761213378273268]
["55","Наличие выплат дивидендов собственникам организации, не являющейся акционерным обществом","выбирает из списка:","да","нет","Если ДА - показать комментарий, что считается по факту, но минимум за 1",null,null,null,65.522426756546537]
["66","Количество единиц транспортных средств организации","выбирает из списка:","нет","1-10","11 - 50","51 - 150","свыше 150",null,0,65.522426756546537,196.56728026963961,393.13456053927922,982.83640134819802]
["10","Закрытие по итогам месяца счета \"Расчетные счета\" (сверка остатков, печать анализа счета)","считать в любом случае",null,null,null,null,null,null,8.1903033445683189]
["11","Закрытие по итогам месяца счета \"Валютные счета\" (сверка остатков, проверка правильности дооценки, печать анализа счета)","считать если, на вопрос 2 или 4 количество больше 0",null,null,null,null,null,null,12.285455016852477]
["12","Закрытие по итогам месяца счета \"Касса\" (сверка остатков, печать анализа счета, отчетности по кассе)","считать если, на вопрос 5 или 6 количество больше 0",null,null,null,null,null,null,8.1903033445683189]
["13","Закрытие по итогам месяца счета \"Учет расчетов с подотчетными лицами\" (проверка наличия/отсутствия задолженности, контроль своевременности расчетов, печать оборотной ведомости)","считать если, на вопрос 7, или 8, или 9 количество больше 0",null,null,null,null,null,null,8.1903033445683189]
["24","Закрытие по итогам месяца счета \"Материалы\" (сверка остатков, печать оборотной ведомости)","считать если, на вопрос 15, или 16, или 17 количество больше 0",null,null,null,null,null,null,12.285455016852477]
["25","Закрытие по итогам месяца счета \"Расчеты с поставщиками и подрядчиками\" в белорусских рублях (сверка остатков, печать оборотной ведомости)","считать в любом случае",null,null,null,null,null,null,12.285455016852477]
["26","Закрытие по итогам месяца счета \"Расчеты с поставщиками и подрядчиками\" в валюте (сверка остатков, печать оборотной ведомости)","считать если, на вопрос 17 количество больше 0",null,null,null,null,null,null,24.570910033704955]
["32","Закрытие по итогам месяца счета \"Расчеты с покупателями и заказчиками\" в белорусских рублях (сверка остатков, печать оборотной ведомости)","считать если, на вопрос 27, или 28, или 30 количество больше 0",null,null,null,null,null,null,12.285455016852477]
["33","Закрытие по итогам месяца счета \"Расчеты с покупателями и заказчиками\" в валюте (сверка остатков, печать оборотной ведомости)","считать если, на вопрос 29 или 31 количество больше 0",null,null,null,null,null,null,24.570910033704955]
["52","Формирование и учет доходов и расходов по текущей деятельности (закрытие месяца)","считать в любом случае",null,null,null,null,null,null,32.761213378273268]
["53","Формирование и учет доходов и расходов по финансовой и инвестиционной деятельности (закрытие месяца)","считать в любом случае",null,null,null,null,null,null,32.761213378273268]
["54","Формирование финансового результата (закрытие месяца)","считать в любом случае",null,null,null,null,null,null,16.380606689136634]
[]
[null,"УЧЕТ ТРУДА И ЗАРАБОТНОЙ ПЛАТЫ"]
["44","Количество сотрудников","вводит в поле конкретное число, цена за сотрудника ",null,null,null,null,null,null,49.14]
["45","Подача сведений ПУ-3 ежеквартально (расчет за месяц)","считается, исходя из количества введенных в вопросе 32 сотрудников",null,null,null,null,null,null,21.84]
["46","Подача отчета 4-фонд, ежеквартально (расчет за месяц)","считать в любом случае",null,null,null,null,null,null,98.283640134819819]
["47","Подача пояснительной записки к ПУ-3, ежегодно (расчет за месяц)","считать в любом случае",null,null,null,null,null,null,32.761213378273268]
["48","Подача отчет по обязательному страхованию от несчастных случаев на производстве и профессиональных заболеваний, ежегодно (расчет за месяц)","считать в любом случае",null,null,null,null,null,null,32.761213378273268]
[]
[null,"НАЛОГОВЫЙ УЧЕТ"]
["56","Организация является плательщиком НДС, льготы отсутствуют (обороты по реализации на территории Республики Беларусь)","выбирает из списка:","да","нет","Если ДА - считать 1 в квартал",null,null,null,98.283640134819819]
["57","Организация является плательщиком НДС, есть наличие льгот либо ставок, помимо основной ставки по НДС (обороты по реализации на территории Республики Беларусь) ","выбирает из списка:","да","нет","Если ДА - считать 1 в квартал",null,null,null,131.04485351309307]
["58","У организации имеются обороты по НДС (при ввозе товаров на территорию Республики Беларусь), за каждую накладную ввоза","выбирает из списка:","да","нет","Если ДА - показать комментарий, что считается по факту, но минимум за 1",null,null,null,49.14182006740991]
["59","Количество заявлений о ввозе товаров и уплате косвенных налогов","выбирает из списка:","нет операций","1-10","11 - 50","51 - 150","свыше 150",null,0,114.66424682395643,327.61213378273271,835.41094114596831,2473.471610059632]
["60","Декларация по налогу на прибыль","выбирает из списка:","да","нет","Если ДА - считать 1 в квартал",null,null,null,150]
["61","Декларация по налогу при УСН","выбирает из списка:","да","нет","Если ДА - считать 1 в квартал",null,null,null,150]
["62","Декларацияпо налогу на недвижимость","выбирает из списка:","да","нет","Если ДА - считать 1 в квартал",null,null,null,150]
["63","Декларация по земельному налогу","выбирает из списка:","да","нет","Если ДА - считать 1 в квартал",null,null,null,150]
["64","Декларация по налогу на доходы иностранных юридических лиц","выбирает из списка:","да","нет","Если ДА - показать комментарий, что считается по факту, но минимум за 1",null,null,null,50]
["65","Отчет по сбору оператору вторичных материальных ресурсов","выбирает из списка:","да","нет","Если ДА - считать 1 в квартал",null,null,null,100]
[]
[null,"ОТЧЕТНОСТЬ (указана стоимость за подготовку и предоставление)"]
["67","отчет 1-мп (микро)","выбирает из списка:","да","нет","Если ДА - считать 1 в год",null,null,null,98.283640134819819]
["68","Отчет 1-мп","выбирает из списка:","да","нет","Если ДА - считать 1 в год",null,null,null,131.04485351309307]
["69","Отчет 12-вэс (услуги)","выбирает из списка:","да","нет","Если ДА - считать 1 в месяц",null,null,null,16.380606689136634]
["70","Отчет 4-ф (инвест): за рубеж","выбирает из списка:","да","нет","Если ДА - считать 1 в квартал",null,null,null,32.761213378273268]
["71","Отчет 4-ф (инвест): из-за рубежа","выбирает из списка:","да","нет","Если ДА - считать 1 в квартал",null,null,null,32.761213378273268]
["72","Отчет 12-ф (расчеты)","выбирает из списка:","да","нет","Если ДА - считать 1 в месяц",null,null,null,49.14182006740991]
["73","Отчет 12-ф (прибыль)","выбирает из списка:","да","нет","Если ДА - считать 1 в месяц",null,null,null,16.380606689136634]
["74","Отчет 4-ф (средства)","выбирает из списка:","да","нет","Если ДА - считать 1 в квартал",null,null,null,32.761213378273268]
["75","Отчет 1-торг","выбирает из списка:","да","нет","Если ДА - считать 1 в год",null,null,null,32.761213378273268]
["76","Отчет 4-торг","выбирает из списка:","да","нет","Если ДА - считать 1 в квартал",null,null,null,32.761213378273268]
["77","Отчет 4-ун","выбирает из списка:","да","нет","Если ДА - считать 1 в квартал",null,null,null,32.761213378273268]
["78","Подготовка годовой бухгалтерской отчетности (4 формы, примечания)","считать в любом случае",null,null,null,null,null,null,1638.0606689136632]
["79","Необходима ли подготовка промежуточной (квартальной) бухгалтерской отчетности (4 формы, примечания) и предоставление ее внешним пользователям","выбирает из списка:","да","нет","Если ДА - считать 1 в квартал",null,null,null,1092.0404459424424]
["80","Подготовка промежуточной (квартальной) бухгалтерской отчетности (2 формы: ББ и ОПУ) и предоставление ее внешним пользователям","выбирает из списка:","да","нет","Если ДА - считать 1 в квартал",null,null,null,614.27275084262385]
["81","Документальное оформление и учет инвентаризации активов и обязательств","считать в любом случае",null,null,null,null,null,null,614.27275084262385]
["82","Необходимо ли взаимодействие с руководителем организации (из расчета количества часов в месяц)","выбирает из списка:","да","нет","Если ДА - считать 1 в месяц",null,null,null,40.950000000000003]
["83","Взаимодействие с различным контрагентами, местной районной администрацией, налоговой и т.п. (из расчета 1 час в месяц)","считать в любом случае",null,null,null,null,null,null,40.951516722841582]

{"sheet":"расчет","index":1,"n_rows":109,"n_cols":5,"rows_kept":109,"cut":false,"hidden":false,"merged":[[4,0,4,4]]}
[]
["ЮРИСАУДИТ"]
[]
[]
[" Прейскурант на услуги по ведению бухгалтерского учета и составлению отчетности для клиентов Юрисаудит"]
[null,null,"Сделайте выбор ниже в каждой из ячеек исходя из количества операций по Вашей организации",null,"цена, руб."]
["БУХГАЛТЕРСКИЙ УЧЕТ ХОЗЯЙСТВЕННЫХ ОПЕРАЦИЙ:"]
["Количество исходящих платежных поручений в месяц (в белорусских рублях)",null,"нет операций",null,{"$f":"IF(C8=формулы!D3,формулы!J3,IF(C8=формулы!E3,формулы!K3,IF(C8=формулы!F3,формулы!L3,IF(C8=формулы!G3,формулы!M3,IF(C8=формулы!H3,формулы!N3,\"выберите значение\")))))","v":0}]
["Количество исходящих платежных поручений в месяц (в иностранной валюте)",null,"нет операций",null,{"$f":"IF(C9=формулы!D4,формулы!J4,IF(C9=формулы!E4,формулы!K4,IF(C9=формулы!F4,формулы!L4,IF(C9=формулы!G4,формулы!M4,IF(C9=формулы!H4,формулы!N4,\"выберите значение\")))))","v":0}]
["Количество входящих платежных поручений в месяц (в белорусских рублях)",null,"нет операций",null,{"$f":"IF(C10=формулы!D5,формулы!J5,IF(C10=формулы!E5,формулы!K5,IF(C10=формулы!F5,формулы!L5,IF(C10=формулы!G5,формулы!M5,IF(C10=формулы!H5,формулы!N5,\"выберите значение\")))))","v":0}]
["Количество входящих платежных поручений в месяц (в иностранной валюте)",null,"нет операций",null,{"$f":"IF(C11=формулы!D6,формулы!J6,IF(C11=формулы!E6,формулы!K6,IF(C11=формулы!F6,формулы!L6,IF(C11=формулы!G6,формулы!M6,IF(C11=формулы!H6,формулы!N6,\"выберите значение\")))))","v":0}]
["Количество приходного кассовых ордеров в месяц",null,"нет операций",null,{"$f":"IF(C12=формулы!D7,формулы!J7,IF(C12=формулы!E7,формулы!K7,IF(C12=формулы!F7,формулы!L7,IF(C12=формулы!G7,формулы!M7,IF(C12=формулы!H7,формулы!N7,\"выберите значение\")))))","v":0}]
["Количество расходных кассовых ордеров в месяц",null,"нет операций",null,{"$f":"IF(C13=формулы!D8,формулы!J8,IF(C13=формулы!E8,формулы!K8,IF(C13=формулы!F8,формулы!L8,IF(C13=формулы!G8,формулы!M8,IF(C13=формулы!H8,формулы!N8,\"выберите значение\")))))","v":0}]
["Количество авансовых отчетов (хозяйственные нужды) в месяц",null,"нет операций",null,{"$f":"IF(C14=формулы!D9,формулы!J9,IF(C14=формулы!E9,формулы!K9,IF(C14=формулы!F9,формулы!L9,IF(C14=формулы!G9,формулы!M9,IF(C14=формулы!H9,формулы!N9,\"выберите значение\")))))","v":0}]
["Количество авансовых отчетов (командировочные расходы по Республике Беларусь) в месяц",null,"нет операций",null,{"$f":"IF(C15=формулы!D10,формулы!J10,IF(C15=формулы!E10,формулы!K10,IF(C15=формулы!F10,формулы!L10,IF(C15=формулы!G10,формулы!M10,IF(C15=формулы!H10,формулы!N10,\"выберите значение\")))))","v":0}]
["Количество авансовых отчетов (командировочные расходы за рубежом) в месяц",null,"нет операций",null,{"$f":"IF(C16=формулы!D11,формулы!J11,IF(C16=формулы!E11,формулы!K11,IF(C16=формулы!F11,формулы!L11,IF(C16=формулы!G11,формулы!M11,IF(C16=формулы!H11,формулы!N11,\"выберите значение\")))))","v":0}]
["Наличие счета \"Корпоративные банковские карты\"",null,"нет",null,{"$f":"IF(C17=формулы!D12,формулы!J12,IF(C17=формулы!E12,0,0))","v":0}]
["Количество накладных на приход ТМЦ в месяц (в белорусских рублях (до 10 позиций в накладной))",null,"нет операций",null,{"$f":"IF(C18=формулы!D13,формулы!J13,IF(C18=формулы!E13,формулы!K13,IF(C18=формулы!F13,формулы!L13,IF(C18=формулы!G13,формулы!M13,IF(C18=формулы!H13,формулы!N13,\"выберите значение\")))))","v":0}]
["Количество накладных на приход ТМЦ в месяц ( в белорусских рублях (свыше 10 позиций в накладной))",null,"нет операций",null,{"$f":"IF(C19=формулы!D14,формулы!J14,IF(C19=формулы!E14,формулы!K14,IF(C19=формулы!F14,формулы!L14,IF(C19=формулы!G14,формулы!M14,IF(C19=формулы!H14,формулы!N14,\"выберите значение\")))))","v":0}]
["Количество накладных на приход ТМЦ в месяц ( в иностранной валюте)",null,"нет операций",null,{"$f":"IF(C20=формулы!D15,формулы!J15,IF(C20=формулы!E15,формулы!K15,IF(C20=формулы!F15,формулы!L15,IF(C20=формулы!G15,формулы!M15,IF(C20=формулы!H15,формулы!N15,\"выберите значение\")))))","v":0}]
["Количество входящих актов выполненных работ в месяц (в белорусских рублях)",null,"нет операций",null,{"$f":"IF(C21=формулы!D16,формулы!J16,IF(C21=формулы!E16,формулы!K16,IF(C21=формулы!F16,формулы!L16,IF(C21=формулы!G16,формулы!M16,IF(C21=формулы!H16,формулы!N16,\"выберите значение\")))))","v":0}]
["Количество входящих актов выполненных работ в месяц (в иностранной валюте)",null,"нет операций",null,{"$f":"IF(C22=формулы!D17,формулы!J17,IF(C22=формулы!E17,формулы!K17,IF(C22=формулы!F17,формулы!L17,IF(C22=формулы!G17,формулы!M17,IF(C22=формулы!H17,формулы!N17,\"выберите значение\")))))","v":0}]
["Количество актов на списание материалов по итогам месяца в месяц (при номенкларуте до 10 позиций в акте)",null,"нет операций",null,{"$f":"IF(C23=формулы!D18,формулы!J18,IF(C23=формулы!E18,формулы!K18,IF(C23=формулы!F18,формулы!L18,IF(C23=формулы!G18,формулы!M18,IF(C23=формулы!H18,формулы!N18,\"выберите значение\")))))","v":0}]
["Количество актов на списание материалов по итогам месяца в месяц (при номенклатуре свыше 10 позиций в акте)",null,"нет операций",null,{"$f":"IF(C24=формулы!D19,формулы!J19,IF(C24=формулы!E19,формулы!K19,IF(C24=формулы!F19,формулы!L19,IF(C24=формулы!G19,формулы!M19,IF(C24=формулы!H19,формулы!N19,\"выберите значение\")))))","v":0}]
["Количество приобретаемого в месяц инвентаря, спецодежды, спецоснастки",null,"нет операций",null,{"$f":"IF(C25=формулы!D20,формулы!J20,IF(C25=формулы!E20,формулы!K20,IF(C25=формулы!F20,формулы!L20,IF(C25=формулы!G20,формулы!M20,IF(C25=формулы!H20,формулы!N20,\"выберите значение\")))))","v":0}]
["Количество путевых листов в месяц",null,"нет операций",null,{"$f":"IF(C26=формулы!D21,формулы!J21,IF(C26=формулы!E21,формулы!K21,IF(C26=формулы!F21,формулы!L21,IF(C26=формулы!G21,формулы!M21,IF(C26=формулы!H21,формулы!N21,\"выберите значение\")))))","v":0}]
["Количество накладных на реализацию ТМЦ в месяц (в белорусских рублях (до 10 позиций в накладной))",null,"нет операций",null,{"$f":"IF(C27=формулы!D22,формулы!J22,IF(C27=формулы!E22,формулы!K22,IF(C27=формулы!F22,формулы!L22,IF(C27=формулы!G22,формулы!M22,IF(C27=формулы!H22,формулы!N22,\"выберите значение\")))))","v":0}]
["Количество накладных на реализацию ТМЦ в месяц (в белорусских рублях (свыше 10 позиций в накладной))",null,"нет операций",null,{"$f":"IF(C28=формулы!D23,формулы!J23,IF(C28=формулы!E23,формулы!K23,IF(C28=формулы!F23,формулы!L23,IF(C28=формулы!G23,формулы!M23,IF(C28=формулы!H23,формулы!N23,\"выберите значение\")))))","v":0}]
["Количество накладных на реализацию ТМЦ в месяц (в иностранной валюте)",null,"нет операций",null,{"$f":"IF(C29=формулы!D24,формулы!J24,IF(C29=формулы!E24,формулы!K24,IF(C29=формулы!F24,формулы!L24,IF(C29=формулы!G24,формулы!M24,IF(C29=формулы!H24,формулы!N24,\"выберите значение\")))))","v":0}]
["Количество актов выполненных работ, оказанных услуг (реализация) в месяц (в белорусских рублях)",null,"нет операций",null,{"$f":"IF(C30=формулы!D25,формулы!J25,IF(C30=формулы!E25,формулы!K25,IF(C30=формулы!F25,формулы!L25,IF(C30=формулы!G25,формулы!M25,IF(C30=формулы!H25,формулы!N25,\"выберите значение\")))))","v":0}]
["Количество актов выполненных работ, оказанных услуг (реализация) в месяц (в иностранной валюте)",null,"нет операций",null,{"$f":"IF(C31=формулы!D26,формулы!J26,IF(C31=формулы!E26,формулы!K26,IF(C31=формулы!F26,формулы!L26,IF(C31=формулы!G26,формулы!M26,IF(C31=формулы!H26,формулы!N26,\"выберите значение\")))))","v":0}]
["Сверка расчетов с поставщиками и подрядчиками, покупателями и заказчиками, в том числе формирование актов (из расчета 2 сверки в месяц)",null,null,null,{"$f":"формулы!J27","v":8.1903033445683189}]
["Количество исходящих электронных счет-фактур по НДС",null,"нет операций",null,{"$f":"IF(C33=формулы!D28,формулы!J28,IF(C33=формулы!E28,формулы!K28,IF(C33=формулы!F28,формулы!L28,IF(C33=формулы!G28,формулы!M28,IF(C33=формулы!H28,формулы!N28,\"выберите значение\")))))","v":0}]
["Количество входящих электронных счетов-фактур по НДС",null,"нет операций",null,{"$f":"IF(C34=формулы!D29,формулы!J29,IF(C34=формулы!E29,формулы!K29,IF(C34=формулы!F29,формулы!L29,IF(C34=формулы!G29,формулы!M29,IF(C34=формулы!H29,формулы!N29,\"выберите значение\")))))","v":0}]
["Формирование вычетов НДС (записей книги покупок)",null,null,null,{"$f":"IF(E34>0,формулы!J30,0)","v":0}]
["Количество оформляемых в месяц доверенностей",null,"нет операций",null,{"$f":"IF(C36=формулы!D31,формулы!J31,IF(C36=формулы!E31,формулы!K31,IF(C36=формулы!F31,формулы!L31,IF(C36=формулы!G31,формулы!M31,IF(C36=формулы!H31,формулы!N31,\"выберите значение\")))))","v":0}]
["Количество выписываемых счетов в месяц на оплату для покупателей и заказчиков",null,"нет операций",null,{"$f":"IF(C37=формулы!D32,формулы!J32,IF(C37=формулы!E32,формулы!K32,IF(C37=формулы!F32,формулы!L32,IF(C37=формулы!G32,формулы!M32,IF(C37=формулы!H32,формулы!N32,\"выберите значение\")))))","v":0}]
["Количество приобретаемых основных средств в месяц",null,"нет операций",null,{"$f":"IF(C38=формулы!D33,формулы!J33,IF(C38=формулы!E33,формулы!K33,IF(C38=формулы!F33,формулы!L33,IF(C38=формулы!G33,формулы!M33,IF(C38=формулы!H33,формулы!N33,\"выберите значение\")))))","v":0}]
["Количество приобретаемых нематериальных активов в месяц",null,"нет операций",null,{"$f":"IF(C39=формулы!D34,формулы!J34,IF(C39=формулы!E34,формулы!K34,IF(C39=формулы!F34,формулы!L34,IF(C39=формулы!G34,формулы!M34,IF(C39=формулы!H34,формулы!N34,\"выберите значение\")))))","v":0}]
["Документальное оформление начисления амортизации основных средств и нематериальных активов (по итогам месяца), печать анализов счетов и оборотных ведомостей",null,null,null,{"$f":"IF(E38>0,формулы!J35,IF(E39>0,формулы!J35,0))","v":0}]
["Документальное оформление и учет операций по выбытию основных средств",null,"нет",null,{"$f":"IF(C41=формулы!D36,формулы!J36,IF(C41=формулы!E36,0,0))","v":0}]
["Наличие управленческих расходов в организации",null,"нет",null,{"$f":"IF(C42=формулы!D37,формулы!J37,IF(C42=формулы!E37,0,0))","v":0}]
["Наличие коммерческих расходов в организации",null,"нет",null,{"$f":"IF(C43=формулы!D38,формулы!J38,IF(C43=формулы!E38,0,0))","v":0}]
["Наличие выплат дивидендов собственникам организации, не являющейся акционерным обществом",null,"нет",null,{"$f":"IF(C44=формулы!D39,формулы!J39,IF(C44=формулы!E39,0,0))","v":0}]
["Количество единиц транспортных средств организации",null,"нет",null,{"$f":"IF(C45=формулы!D40,формулы!J40,IF(C45=формулы!E40,формулы!K40,IF(C45=формулы!F40,формулы!L40,IF(C45=формулы!G40,формулы!M40,IF(C45=формулы!H40,формулы!N40,\"выберите значение\")))))","v":0}]
["Закрытие по итогам месяца счета \"Расчетные счета\" (сверка остатков, печать анализа счета)",null,null,null,{"$f":"формулы!J41","v":8.1903033445683189}]
["Закрытие по итогам месяца счета \"Валютные счета\" (сверка остатков, проверка правильности дооценки, печать анализа счета)",null,null,null,{"$f":"IF(E9>0,формулы!J42,IF(E11>0,формулы!J42,0))","v":0}]
["Закрытие по итогам месяца счета \"Касса\" (сверка остатков, печать анализа счета, отчетности по кассе)",null,null,null,{"$f":"IF(E12>0,формулы!J43,IF(E13>0,формулы!J43,0))","v":0}]
["Закрытие по итогам месяца счета \"Учет расчетов с подотчетными лицами\" (проверка наличия/отсутствия задолженности, контроль своевременности расчетов, печать оборотной ведомости)",null,null,null,{"$f":"IF(E14>0,формулы!J44,IF(E15>0,формулы!J44,IF(E16>0,формулы!J44,0)))","v":0}]
["Закрытие по итогам месяца счета \"Материалы\" (сверка остатков, печать оборотной ведомости)",null,null,null,{"$f":"IF(E18>0,формулы!J45,IF(E19>0,формулы!J45,IF(E20>0,формулы!J45,0)))","v":0}]
["Закрытие по итогам месяца счета \"Расчеты с поставщиками и подрядчиками\" в белорусских рублях (сверка остатков, печать оборотной ведомости)",null,null,null,{"$f":"формулы!J46","v":12.285455016852477}]
["Закрытие по итогам месяца счета \"Расчеты с поставщиками и подрядчиками\" в валюте (сверка остатков, печать оборотной ведомости)",null,null,null,{"$f":"IF(E20>0,формулы!J47,0)","v":0}]
["Закрытие по итогам месяца счета \"Расчеты с покупателями и заказчиками\" в белорусских рублях (сверка остатков, печать оборотной ведомости)",null,null,null,{"$f":"IF(E27>0,формулы!J48,IF(E28>0,формулы!J48,IF(E30>0,формулы!J48,0)))","v":0}]
["Закрытие по итогам месяца счета \"Расчеты с покупателями и заказчиками\" в валюте (сверка остатков, печать оборотной ведомости)",null,null,null,{"$f":"IF(E29>0,формулы!J49,IF(E31>0,формулы!J49,0))","v":0}]
["Формирование и учет доходов и расходов по текущей деятельности (закрытие месяца)",null,null,null,{"$f":"формулы!J50","v":32.761213378273268}]
["Формирование и учет доходов и расходов по финансовой и инвестиционной деятельности (закрытие месяца)",null,null,null,{"$f":"формулы!J51","v":32.761213378273268}]
["Формирование финансового результата (закрытие месяца)",null,null,null,{"$f":"формулы!J52","v":16.380606689136634}]
[null,null,"ИТОГО",null,{"$f":"SUM(E8:E57)","v":110.56909515167229}]
[]
[]
["УЧЕТ ТРУДА И ЗАРАБОТНОЙ ПЛАТЫ"]
["Количество сотрудников (введите число в ячейку справа)",null,1,null,{"$f":"C62*формулы!J55","v":49.14}]
["Подача сведений ПУ-3 ежеквартально (расчет за месяц)",null,null,null,{"$f":"IF(E62>0,C62*формулы!J56/3,0)","v":7.28}]
["Подача отчета 4-фонд, ежеквартально (расчет за месяц)",null,null,null,{"$f":"IF(E62>0,формулы!J57/3,0)","v":32.761213378273276}]
["Подача пояснительной записки к ПУ-3, ежегодно (расчет за месяц)",null,null,null,{"$f":"IF(E62>0,формулы!J58/3,0)","v":10.920404459424423}]
["Подача отчет по обязательному страхованию от несчастных случаев на производстве и профессиональных заболеваний, ежегодно (расчет за месяц)",null,null,null,{"$f":"IF(E62>0,формулы!J59/12,0)","v":2.7301011148561058}]
[null,null,"ИТОГО",null,{"$f":"SUM(E62:E66)","v":102.8317189525538}]
[]
[]
["НАЛОГОВЫЙ УЧЕТ"]
["Организация является плательщиком НДС, льготы отсутствуют (обороты по реализации на территории Республики Беларусь)",null,"нет",null,{"$f":"IF(C71=формулы!D62,формулы!J62,IF(C71=формулы!E62,0,0))","v":0}]
["Организация является плательщиком НДС, есть наличие льгот либо ставок, помимо основной ставки по НДС (обороты по реализации на территории Республики Беларусь) ",null,"нет",null,{"$f":"IF(C72=формулы!D63,формулы!J63,IF(C72=формулы!E63,0,0))","v":0}]
["У организации имеются обороты по НДС (при ввозе товаров на территорию Республики Беларусь), за каждую накладную ввоза",null,"нет",null,{"$f":"IF(C73=формулы!D64,формулы!J64,IF(C73=формулы!E64,0,0))","v":0}]
["Количество заявлений о ввозе товаров и уплате косвенных налогов",null,"нет операций",null,{"$f":"IF(C74=формулы!D65,формулы!J65,IF(C74=формулы!E65,формулы!K65,IF(C74=формулы!F65,формулы!L65,IF(C74=формулы!G65,формулы!M65,IF(C74=формулы!H65,формулы!N65,\"выберите значение\")))))","v":0}]
["Декларация по налогу на прибыль",null,"нет",null,{"$f":"IF(C75=формулы!D66,формулы!J66,IF(C75=формулы!E66,0,0))","v":0}]
["Декларация по налогу при УСН",null,"нет",null,{"$f":"IF(C76=формулы!D67,формулы!J67,IF(C76=формулы!E67,0,0))","v":0}]
["Декларацияпо налогу на недвижимость",null,"нет",null,{"$f":"IF(C77=формулы!D68,формулы!J68,IF(C77=формулы!E68,0,0))","v":0}]
["Декларация по земельному налогу",null,"нет",null,{"$f":"IF(C78=формулы!D69,формулы!J69,IF(C78=формулы!E69,0,0))","v":0}]
["Декларация по налогу на доходы иностранных юридических лиц",null,"нет",null,{"$f":"IF(C79=формулы!D70,формулы!J70,IF(C79=формулы!E70,0,0))","v":0}]
["Отчет по сбору оператору вторичных материальных ресурсов",null,"нет",null,{"$f":"IF(C80=формулы!D71,формулы!J71,IF(C80=формулы!E71,0,0))","v":0}]
[null,null,"ИТОГО",null,{"$f":"SUM(E71:E80)","v":0}]
[]
[]
["ОТЧЕТНОСТЬ (указана стоимость за подготовку и предоставление: каждая успешная подача)"]
["отчет 1-мп (микро)",null,"нет",null,{"$f":"IF(C85=формулы!D74,формулы!J74,IF(C85=формулы!E74,0,0))","v":0}]
["Отчет 1-мп",null,"нет",null,{"$f":"IF(C86=формулы!D75,формулы!J75,IF(C86=формулы!E75,0,0))","v":0}]
["Отчет 12-вэс (услуги)",null,"нет",null,{"$f":"IF(C87=формулы!D76,формулы!J76,IF(C87=формулы!E76,0,0))","v":0}]
["Отчет 4-ф (инвест): за рубеж",null,"нет",null,{"$f":"IF(C88=формулы!D77,формулы!J77,IF(C88=формулы!E77,0,0))","v":0}]
["Отчет 4-ф (инвест): из-за рубежа",null,"нет",null,{"$f":"IF(C89=формулы!D78,формулы!J78,IF(C89=формулы!E78,0,0))","v":0}]
["Отчет 12-ф (расчеты)",null,"нет",null,{"$f":"IF(C90=формулы!D79,формулы!J79,IF(C90=формулы!E79,0,0))","v":0}]
["Отчет 12-ф (прибыль)",null,"нет",null,{"$f":"IF(C91=формулы!D80,формулы!J80,IF(C91=формулы!E80,0,0))","v":0}]
["Отчет 4-ф (средства)",null,"нет",null,{"$f":"IF(C92=формулы!D81,формулы!J81,IF(C92=формулы!E81,0,0))","v":0}]
["Отчет 1-торг",null,"нет",null,{"$f":"IF(C93=формулы!D82,формулы!J82,IF(C93=формулы!E82,0,0))","v":0}]
["Отчет 4-торг",null,"нет",null,{"$f":"IF(C94=формулы!D83,формулы!J83,IF(C94=формулы!E83,0,0))","v":0}]
["Отчет 4-ун",null,"нет",null,{"$f":"IF(C95=формулы!D84,формулы!J84,IF(C95=формулы!E84,0,0))","v":0}]
["Подготовка годовой бухгалтерской отчетности (4 формы, примечания)",null,null,null,{"$f":"формулы!J85","v":1638.0606689136632}]
["Необходима ли подготовка промежуточной (квартальной) бухгалтерской отчетности (4 формы, примечания) и предоставление ее внешним пользователям",null,"нет",null,{"$f":"IF(C97=формулы!D86,формулы!J86,IF(C97=формулы!E86,0,0))","v":0}]
["Подготовка промежуточной (квартальной) бухгалтерской отчетности (2 формы: ББ и ОПУ) и предоставление ее внешним пользователям",null,"нет",null,{"$f":"IF(C98=формулы!D87,формулы!J87,IF(C98=формулы!E87,0,0))","v":0}]
["Документальное оформление и учет инвентаризации активов и обязательств",null,null,null,{"$f":"формулы!J88","v":614.27275084262385}]
["Необходимо ли взаимодействие с руководителем организации (из расчета количества часов в месяц)",null,0,null,{"$f":"C100*формулы!J89","v":0}]
["Взаимодействие с различным контрагентами, местной районной администрацией, налоговой и т.п. (из расчета 1 час в месяц)",null,null,null,{"$f":"формулы!J90","v":40.951516722841582}]
[null,null,"ИТОГО:",null,{"$f":"SUM(E85:E101)","v":2293.2849364791286}]
[]
["Контактное лицо:"]
["Мазовка Наталья"]
["375 29 1107282"]
["nm@y-audit.by"]
[]
["Спасибо за Ваше время!"]